fUSD/lending_fUSD_20250620
["ID","MTS","AMOUNT","RATE_DAILY","PERIOD"]
[366801234,1750462282781,-490.0,0.00025479,4]
[366801235,1750462282803,-490.0,0.00025479,4]
[366801236,1750462282827,-490.0,0.00025479,4]
[366801237,1750462282849,-490.0,0.00025479,4]
[366801238,1750462282867,-490.0,0.00025479,4]
[366801239,1750462282889,-490.0,0.00025479,4]
[366801240,1750462282912,-701.32,0.00025479,4]
[366801241,1750462282934,-151.0,0.00025479,7]
[366801242,1750462282956,-490.0,0.00025479,4]
[366801243,1750462282977,-490.0,0.00025479,4]
[366801244,1750462282998,-490.0,0.00025479,4]
[366801245,1750462283014,-151.0,0.00025479,7]
[366801246,1750462283036,-523.88,0.00025479,4]
[366801247,1750462283049,-490.0,0.00025479,4]
[366801248,1750462283073,-490.0,0.00025479,4]
[366801249,1750462283087,-518.17,0.00025479,4]
[366801250,1750462283106,-490.0,0.00025479,4]
[366801251,1750462283125,-490.0,0.00025479,4]
[366801252,1750462283144,-490.0,0.00025479,4]
[366801253,1750462283164,-490.0,0.00025479,4]
[366801254,1750462283183,-490.0,0.00025479,4]
[366801255,1750462283210,-346.78,0.00025479,4]
[366801256,1750462283227,-490.0,0.00025479,4]
[366801257,1750462283245,-490.0,0.00025479,4]
[366801258,1750462283262,-490.0,0.00025479,4]
[366801259,1750462283279,-151.0,0.00025479,7]
[366801260,1750462283298,-1048.36,0.00025479,4]
[366801261,1750462283316,-490.0,0.00025479,4]
[366801262,1750462283334,-490.0,0.00025479,4]
[366801263,1750462283351,-490.0,0.00025479,4]
[366801264,1750462283369,-541.96,0.00025479,4]
[366801265,1750462283387,-490.0,0.00025479,4]
[366801266,1750462283405,-490.0,0.00025479,4]
[366801267,1750462283423,-630.0,0.00025479,4]
[366801268,1750462283440,-490.0,0.00025479,4]
[366801269,1750462283457,-490.0,0.00025479,4]
[366801270,1750462283474,-151.0,0.00025479,7]
[366801271,1750462283491,-490.0,0.00025479,4]
[366801272,1750462283509,-490.0,0.00025479,4]
[366801273,1750462283527,-490.0,0.00025479,4]
[366801274,1750462283544,-771.24,0.00025479,4]
[366801275,1750462283562,-441.04,0.00025479,4]
[366801276,1750462283579,-490.0,0.00025479,4]
[366801277,1750462283596,-490.0,0.00025479,4]
[366801278,1750462283613,-490.0,0.00025479,4]
[366801279,1750462283631,-738.34,0.00025479,4]
[366801280,1750462283648,-490.0,0.00025479,4]
[366801281,1750462283666,-222.43,0.00025479,4]
[366801282,1750462283685,-490.0,0.00025479,4]
[366801283,1750462283702,-160.240729,0.00025479,7]
[366801284,1750462283720,-490.0,0.00025479,4]
[366801285,1750462283738,-490.0,0.00025479,4]
[366801286,1750462283759,-160.240729,0.00025479,7]
[366801287,1750462283776,-490.0,0.00025479,4]
[366801288,1750462283795,-634.42,0.00025479,4]
[366801289,1750462283813,-632.82,0.00025479,4]
[366801290,1750462283830,-490.0,0.00025479,4]
[366801291,1750462283848,-490.0,0.00025479,4]
[366801292,1750462283865,-490.0,0.00025479,4]
[366801293,1750462283883,-490.0,0.00025479,4]
[366801294,1750462283900,-490.0,0.00025479,4]
[366801295,1750462283917,-490.0,0.00025479,4]
[366801296,1750462283935,-490.0,0.00025479,4]
[366801297,1750462283953,-657.38,0.00025479,4]
[366801298,1750462283972,-490.0,0.00025479,4]
[366801299,1750462283982,-490.0,0.00025479,4]
[366801300,1750462283992,-490.0,0.00025479,4]
[366801301,1750462284002,-490.0,0.00025479,4]
[366801302,1750462284012,-490.0,0.00025479,4]
[366801303,1750462284022,-505.46,0.00025479,4]
[366801304,1750462284032,-490.0,0.00025479,4]
[366801305,1750462284042,-151.0,0.00025479,7]
[366801306,1750462284053,-490.0,0.00025479,4]
[366801307,1750462284063,-199.239757,0.00025479,7]
[366801308,1750462284074,-2132.29,0.00025479,4]
[366801309,1750462284084,-490.0,0.00025479,4]
[366801310,1750462284094,-490.0,0.00025479,4]
[366801311,1750462284104,-490.0,0.00025479,4]
[366801312,1750462284114,-490.0,0.00025479,4]
[366801313,1750462284124,-490.0,0.00025479,4]
[366801314,1750462284134,-490.0,0.00025479,4]
[366801315,1750462284144,-490.0,0.00025479,4]
[366801316,1750462284154,-307.44,0.00025479,4]
[366801317,1750462284164,-490.0,0.00025479,4]
[366801318,1750462284175,-821.57,0.00025479,4]
[366801319,1750462284186,-490.0,0.00025479,4]
[366801320,1750462284196,-490.0,0.00025479,4]
[366801321,1750462284206,-745.94,0.00025479,4]
[366801322,1750462284217,-490.0,0.00025479,4]
[366801323,1750462284226,-490.0,0.00025479,4]
[366801324,1750462284236,-470.36894502,0.00025479,4]
[366801325,1750462284246,-490.0,0.00025479,4]
[366801326,1750462284257,-490.0,0.00025479,4]
[366801327,1750462284267,-834.4,0.00025479,4]
[366801328,1750462284277,-490.0,0.00025479,4]
[366801329,1750462284287,-1314.51,0.00025479,4]
[366801330,1750462284297,-490.0,0.00025479,4]
[366801331,1750462284307,-665.869119,0.00025479,7]
[366801332,1750462284318,-185.78,0.00025479,4]
[366801333,1750462284328,-665.869119,0.00025479,7]
[366801334,1750462284770,-490.0,0.00025479,4]
[366801335,1750462284796,-151.0,0.00025479,7]
[366801336,1750462284822,-490.0,0.00025479,4]
[366801337,1750462284834,-490.0,0.00025479,4]
[366801338,1750462284845,-490.0,0.00025479,4]
[366801339,1750462284856,-490.0,0.00025479,4]
[366801340,1750462284866,-633.38,0.00025479,4]
[366801341,1750462284876,-151.0,0.00025479,7]
[366801342,1750462284886,-490.0,0.00025479,4]
[366801343,1750462284896,-490.0,0.00025479,4]
[366801344,1750462284906,-490.0,0.00025479,4]
[366801345,1750462284918,-490.0,0.00025479,4]
[366801346,1750462284928,-711.11,0.00025479,4]
[366801347,1750462284938,-490.0,0.00025479,4]
[366801348,1750462284948,-490.0,0.00025479,4]
[366801349,1750462284958,-490.0,0.00025479,4]
[366801350,1750462284969,-1271.89,0.00025479,4]
[366801351,1750462284980,-490.0,0.00025479,4]
[366801352,1750462284990,-191.15,0.00025479,4]
[366801353,1750462284999,-490.0,0.00025479,4]
[366801354,1750462285010,-490.0,0.00025479,4]
[366801355,1750462285020,-490.0,0.00025479,4]
[366801356,1750462285030,-480.701654,0.00025479,7]
[366801357,1750462285041,-490.0,0.00025479,4]
[366801358,1750462285052,-702.62,0.00025479,4]
[366801359,1750462285062,-490.0,0.00025479,4]
[366801360,1750462285071,-480.701654,0.00025479,7]
[366801361,1750462285081,-490.0,0.00025479,4]
[366801362,1750462285091,-214.53339754,0.00025479,4]
[366801363,1750462285101,-490.0,0.00025479,4]
[366801364,1750462285111,-605.7,0.00025479,4]
[366801365,1750462285120,-490.0,0.00025479,4]
[366801366,1750462285130,-434.99356588,0.00025479,4]
[366801367,1750462285196,-55.00643412,0.00025479,4]
[366801368,1750462285206,-8879.739246,0.00025479,4]
[366801369,1750462285216,-490.0,0.00025479,4]
[366801370,1750462285226,-624.6,0.00025479,4]
[366801371,1750462285236,-490.0,0.00025479,4]
[366801372,1750462285246,-490.0,0.00025479,4]
[366801373,1750462285256,-490.0,0.00025479,4]
[366801374,1750462285265,-403.27831988,0.00025479,4]
[366801375,1750462285287,-86.72168012,0.00025479,4]
[366801376,1750462285297,-490.0,0.00025479,4]
[366801377,1750462285307,-490.0,0.00025479,4]
[366801378,1750462285316,-767.31,0.00025479,4]
[366801379,1750462285326,-490.0,0.00025479,4]
[366801380,1750462285336,-490.0,0.00025479,4]
[366801381,1750462285346,-630.0,0.00025479,4]
[366801382,1750462285356,-302.36,0.00025479,4]
[366801383,1750462285366,-151.0,0.00025479,7]
[366801384,1750462285377,-490.0,0.00025479,4]
[366801385,1750462285387,-490.0,0.00025479,4]
[366801386,1750462285397,-1937.931791,0.00025479,4]
[366801387,1750462285407,-1672.91,0.00025479,4]
[366801388,1750462285416,-490.0,0.00025479,4]
[366801389,1750462285426,-490.0,0.00025479,4]
[366801390,1750462285435,-490.0,0.00025479,4]
[366801391,1750462285447,-225.45652889,0.00025479,4]
[366801392,1750462285997,-490.0,0.00024657,2]
[366801393,1750462286008,-10.2,0.00025479,4]
[366801394,1750462286033,-490.0,0.00024657,2]
[366801395,1750462286044,-74.42879599,0.00025479,4]
[366801396,1750462286111,-179.91467512,0.00025479,4]
[366801397,1750462286121,-490.0,0.00025479,4]
[366801398,1750462286131,-490.0,0.00025479,4]
[366801399,1750462286140,-490.0,0.00025479,4]
[366801400,1750462286149,-490.0,0.00025479,4]
[366801401,1750462286158,-490.0,0.00025479,4]
[366801402,1750462286168,-490.0,0.00025479,4]
[366801403,1750462286177,-490.0,0.00025479,4]
[366801404,1750462286187,-1394.52,0.00025479,4]
[366801405,1750462286196,-7485.889208,0.00025479,4]
[366801406,1750462286205,-410.40779412,0.00025479,4]
[366801407,1750462286259,-79.59220588,0.00025479,4]
[366801408,1750462286268,-490.0,0.00025479,4]
[366801409,1750462286278,-490.0,0.00025479,4]
[366801410,1750462286288,-490.0,0.00025479,4]
[366801411,1750462286297,-659.78,0.00025479,4]
[366801412,1750462286307,-490.0,0.00025479,4]
[366801413,1750462286317,-490.0,0.00025479,4]
[366801414,1750462286327,-490.0,0.00025479,4]
[366801415,1750462286336,-310.73273559,0.00025479,4]
[366801416,1750462286367,-179.26726441,0.00025479,4]
[366801417,1750462286377,-559.2,0.00025479,4]
[366801418,1750462286387,-490.0,0.00025479,4]
[366801419,1750462286396,-1309.57,0.00025479,4]
[366801420,1750462286406,-490.0,0.00025479,4]
[366801421,1750462286416,-60.15041338,0.00025479,4]
[366801422,1750462286428,-429.84958662,0.00025479,4]
[366801423,1750462286438,-492.75579593,0.00025479,4]
[366801424,1750462286447,-265.508913,0.00025479,7]
[366801425,1750462286457,-490.0,0.00025479,4]
[366801426,1750462286467,-490.0,0.00025479,4]
[366801427,1750462286477,-490.0,0.00025479,4]
[366801428,1750462286487,-628.63,0.00025479,4]
[366801429,1750462286497,-265.508913,0.00025479,7]
[366801430,1750462286506,-298.223503,0.00025479,7]
[366801431,1750462286516,-372.82024176,0.00025479,4]
[366801432,1750462287605,-490.0,0.00024657,2]
[366801433,1750462287616,-490.0,0.00024657,2]
[366801434,1750462287626,-490.0,0.00024657,2]
[366801435,1750462287636,-490.0,0.00024657,2]
[366801436,1750462287646,-490.0,0.00024657,2]
[366801437,1750462287657,-490.0,0.00024931,4]
[366801438,1750462287667,-490.0,0.00024931,4]
[366801439,1750462287677,-490.0,0.00025205,4]
[366801440,1750462287687,-117.17975824,0.00025479,4]
[366801441,1750462287697,-564.72,0.00025479,4]
[366801442,1750462287707,-1248.17,0.00025479,4]
[366801443,1750462287718,-490.0,0.00025479,4]
[366801444,1750462287727,-490.0,0.00025479,4]
[366801445,1750462287737,-1736.39,0.00025479,4]
[366801446,1750462287748,-907.15,0.00025479,4]
[366801447,1750462287758,-298.223503,0.00025479,7]
[366801448,1750462287768,-711.89,0.00025479,4]
[366801449,1750462287779,-458.34,0.00025479,4]
[366801450,1750462287790,-586.28,0.00025479,4]
[366801451,1750462287801,-490.0,0.00025479,4]
[366801452,1750462287810,-490.0,0.00025479,4]
[366801453,1750462287820,-433.08301,0.00025479,7]
[366801454,1750462287831,-2040.6,0.00025479,4]
[366801455,1750462287840,-595.47,0.00025479,4]
[366801456,1750462287850,-601.86844483,0.00025479,4]
[366801457,1750462287861,-433.08301,0.00025479,7]
[366801458,1750462288069,-504.47,0.00025479,4]
[366801459,1750462288079,-490.0,0.00025479,4]
[366801460,1750462288088,-662.29,0.00025479,4]
[366801461,1750462288099,-915.35,0.00025479,4]
[366801462,1750462288109,-919.88,0.00025479,4]
[366801463,1750462288119,-490.0,0.00025479,4]
[366801464,1750462288130,-490.0,0.00025479,4]
[366801465,1750462288142,-490.0,0.00025479,4]
[366801466,1750462288154,-790.26,0.00025479,4]
[366801467,1750462288165,-490.0,0.00025479,4]
[366801468,1750462288177,-490.0,0.00025479,4]
[366801469,1750462288187,-490.0,0.00025479,4]
[366801470,1750462288197,-490.0,0.00025479,4]
[366801471,1750462288208,-3074.53,0.00025479,2]
[366801472,1750462288217,-490.0,0.00025479,4]
[366801473,1750462288228,-490.0,0.00025479,4]
[366801474,1750462288237,-540.82,0.00025479,4]
[366801475,1750462288248,-490.0,0.00025479,4]
[366801476,1750462288258,-490.0,0.00025479,4]
[366801477,1750462288268,-490.0,0.00025479,4]
[366801478,1750462288278,-491.56,0.00025479,4]
[366801479,1750462288288,-490.0,0.00025479,4]
[366801480,1750462288298,-2189.79,0.00025479,4]
[366801481,1750462288309,-490.0,0.00025479,4]
[366801482,1750462288318,-490.0,0.00025479,4]
[366801483,1750462288328,-3625.07,0.00025479,4]
[366801484,1750462288338,-490.0,0.00025479,4]
[366801485,1750462288348,-490.0,0.00025479,4]
[366801486,1750462288359,-542.9,0.00025479,4]
[366801487,1750462288369,-490.0,0.00025479,4]
[366801488,1750462288379,-2035.53,0.00025479,4]
[366801489,1750462288389,-490.0,0.00025479,4]
[366801490,1750462288399,-490.0,0.00025479,4]
[366801491,1750462288409,-490.0,0.00025479,4]
[366801492,1750462288419,-490.0,0.00025479,4]
[366801493,1750462288430,-490.0,0.00025479,4]
[366801494,1750462288440,-294.6359,0.00025479,7]
[366801495,1750462288450,-490.0,0.00025479,4]
[366801496,1750462288461,-490.0,0.00025479,4]
[366801497,1750462288471,-1635.64,0.00025479,4]
[366801498,1750462288481,-1000.0,0.00025479,4]
[366801499,1750462288491,-490.0,0.00025479,4]
[366801500,1750462288502,-535.11,0.00025479,4]
[366801501,1750462288511,-490.0,0.00025479,4]
[366801502,1750462288522,-490.0,0.00025479,4]
[366801503,1750462288532,-792.55,0.00025479,4]
[366801504,1750462288542,-490.0,0.00025479,4]
[366801505,1750462288553,-490.0,0.00025479,4]
[366801506,1750462288563,-294.6359,0.00025479,7]
[366801507,1750462288573,-490.0,0.00025479,4]
[366801508,1750462288583,-490.0,0.00025479,4]
[366801509,1750462288593,-490.0,0.00025479,4]
[366801510,1750462288603,-405.86,0.00025479,4]
[366801511,1750462288613,-490.0,0.00025479,4]
[366801512,1750462288623,-490.0,0.00025479,4]
[366801513,1750462288634,-490.0,0.00025479,4]
[366801514,1750462288643,-974.41,0.00025479,4]
[366801515,1750462288654,-674.28,0.00025479,4]
[366801516,1750462288664,-639.3,0.00025479,4]
[366801517,1750462288675,-967.38,0.00025479,4]
[366801518,1750462288685,-490.0,0.00025479,4]
[366801519,1750462288696,-490.0,0.00025479,4]
[366801520,1750462288707,-594.02,0.00025479,4]
[366801521,1750462288717,-981.04,0.00025479,4]
[366801522,1750462288727,-490.0,0.00025479,4]
[366801523,1750462288738,-490.0,0.00025479,4]
[366801524,1750462288749,-490.0,0.00025479,4]
[366801525,1750462288763,-490.0,0.00025479,4]
[366801526,1750462288773,-490.0,0.00025479,4]
[366801527,1750462288783,-490.0,0.00025479,4]
[366801528,1750462288794,-490.0,0.00025479,4]
[366801529,1750462288805,-490.0,0.00025479,4]
[366801530,1750462288816,-490.0,0.00025479,4]
[366801531,1750462288827,-490.0,0.00025479,4]
[366801532,1750462288837,-490.0,0.00025479,4]
[366801533,1750462288846,-490.0,0.00025479,4]
[366801534,1750462288856,-490.0,0.00025479,4]
[366801535,1750462288866,-560.79,0.00025479,4]
[366801536,1750462288876,-1259.33,0.00025479,4]
[366801537,1750462288886,-490.0,0.00025479,4]
[366801538,1750462288896,-490.0,0.00025479,4]
[366801539,1750462288906,-490.0,0.00025479,4]
[366801540,1750462288916,-490.0,0.00025479,4]
[366801541,1750462288928,-490.0,0.00025479,4]
[366801542,1750462288938,-490.0,0.00025479,4]
[366801543,1750462288949,-490.0,0.00025479,4]
[366801544,1750462288960,-490.0,0.00025479,4]
[366801545,1750462288971,-490.0,0.00025479,4]
[366801546,1750462288981,-756.69,0.00025479,4]
[366801547,1750462288991,-490.0,0.00025479,4]
[366801548,1750462289002,-834.55,0.00025479,4]
[366801549,1750462289012,-490.0,0.00025479,4]
[366801550,1750462289022,-490.0,0.00025479,4]
[366801551,1750462289033,-960.34,0.00025479,4]
[366801552,1750462289043,-490.0,0.00025479,4]
[366801553,1750462289054,-720.08,0.00025479,4]
[366801554,1750462289064,-490.0,0.00025479,4]
[366801555,1750462289074,-1095.64,0.00025479,4]
[366801556,1750462289084,-490.0,0.00025479,4]
[366801557,1750462289094,-490.0,0.00025479,4]
[366801558,1750462289104,-5714.11,0.00025479,4]
[366801559,1750462289113,-490.0,0.00025479,4]
[366801560,1750462289124,-989.57,0.00025479,4]
[366801561,1750462289134,-490.0,0.00025479,4]
[366801562,1750462289143,-490.0,0.00025479,4]
[366801563,1750462289153,-217.13616427,0.00025479,4]
[366801564,1750462289164,-490.0,0.00025479,4]
[366801565,1750462289175,-490.0,0.00025479,4]
[366801566,1750462289185,-490.0,0.00025479,4]
[366801567,1750462289194,-625.42,0.00025479,4]
[366801568,1750462289204,-490.0,0.00025479,4]
[366801569,1750462289215,-490.0,0.00025479,4]
[366801570,1750462289225,-490.0,0.00025479,4]
[366801571,1750462289234,-490.0,0.00025479,4]
[366801572,1750462289244,-490.0,0.00025479,4]
[366801573,1750462289255,-490.0,0.00025479,4]
[366801574,1750462289266,-490.0,0.00025479,4]
[366801575,1750462289277,-151.0,0.00025479,7]
[366801576,1750462289289,-490.0,0.00025479,4]
[366801577,1750462289299,-534.77,0.00025479,4]
[366801578,1750462289311,-490.0,0.00025479,4]
[366801579,1750462289320,-490.0,0.00025479,4]
[366801580,1750462289331,-490.0,0.00025479,4]
[366801581,1750462289341,-10404.34,0.00025479,4]
[366801582,1750462289351,-151.0,0.00025479,7]
[366801583,1750462289361,-490.0,0.00025479,4]
[366801584,1750462289371,-490.0,0.00025479,4]
[366801585,1750462289381,-1225.94,0.00025479,4]
[366801586,1750462289391,-490.0,0.00025479,4]
[366801587,1750462289403,-519.97,0.00025479,4]
[366801588,1750462289413,-490.0,0.00025479,4]
[366801589,1750462289423,-1531.22,0.00025479,4]
[366801590,1750462289433,-885.36,0.00025479,4]
[366801591,1750462289443,-490.0,0.00025479,4]
[366801592,1750462289453,-490.0,0.00025479,4]
[366801593,1750462289464,-490.0,0.00025479,4]
[366801594,1750462289474,-490.0,0.00025479,4]
[366801595,1750462289485,-490.0,0.00025479,4]
[366801596,1750462289495,-490.0,0.00025479,4]
[366801597,1750462289505,-490.0,0.00025479,4]
[366801598,1750462289515,-490.0,0.00025479,4]
[366801599,1750462289525,-490.0,0.00025479,4]
[366801600,1750462289535,-490.0,0.00025479,4]
[366801601,1750462289546,-490.0,0.00025479,4]
[366801602,1750462289556,-2514.33,0.00025479,4]
[366801603,1750462289566,-490.0,0.00025479,4]
[366801604,1750462289577,-490.0,0.00025479,4]
[366801605,1750462289588,-490.0,0.00025479,4]
[366801606,1750462289598,-490.0,0.00025479,4]
[366801607,1750462289609,-151.0,0.00025479,7]
[366801608,1750462289619,-507.68,0.00025479,4]
[366801609,1750462289629,-490.0,0.00025479,4]
[366801610,1750462289639,-490.0,0.00025479,4]
[366801611,1750462289648,-490.0,0.00025479,4]
[366801612,1750462289659,-657.32,0.00025479,4]
[366801613,1750462289669,-490.0,0.00025479,4]
[366801614,1750462289680,-1082.2,0.00025479,4]
[366801615,1750462289689,-490.0,0.00025479,4]
[366801616,1750462289700,-300.0,0.00025479,2]
[366801617,1750462289710,-490.0,0.00025479,4]
[366801618,1750462289720,-490.0,0.00025479,4]
[366801619,1750462289730,-490.0,0.00025479,4]
[366801620,1750462289740,-490.0,0.00025479,4]
[366801621,1750462289750,-3687.02,0.00025479,4]
[366801622,1750462289760,-490.0,0.00025479,4]
[366801623,1750462289770,-205.0,0.00025498,5]
[366801624,1750462289781,-240.77227,0.000255,2]
[366801625,1750462289791,-430.05333863,0.00025501,2]
[366801626,1750462289800,-980.94485654,0.00025504,2]
[366801627,1750462289811,-500.0,0.00025506,4]
[366801628,1750462289821,-295.94829925,0.00025519,2]
[366801629,1750462289830,-600.0,0.0002552,4]
[366801630,1750462289840,-300.0,0.0002552,2]
[366801631,1750462289849,-192.83775303,0.00025521,2]
[366801632,1750462289859,-1000.0,0.00025521,2]
[366801633,1750462289868,-167.9817986,0.00025521,2]
[366801634,1750462289878,-1000.0,0.00025521,2]
[366801635,1750462289890,-1000.0,0.00025521,2]
[366801636,1750462289901,-1000.0,0.00025521,2]
[366801637,1750462289911,-1000.0,0.00025521,2]
[366801638,1750462289922,-1000.0,0.00025521,2]
[366801639,1750462289932,-1000.0,0.00025521,2]
[366801640,1750462289943,-255.0,0.0002555,2]
[366801641,1750462289954,-500.0,0.000256,4]
[366801642,1750462289964,-500.0,0.000256,4]
[366801643,1750462289973,-150.0,0.00025601,2]
[366801644,1750462289985,-10084.72022053,0.00025601,2]
[366801645,1750462289997,-150.0,0.00025601,2]
[366801646,1750462290008,-574.77399296,0.00025601,2]
[366801647,1750462290018,-150.0,0.00025601,2]
[366801648,1750462290028,-3897.74710416,0.00025601,2]
[366801649,1750462290038,-150.0,0.00025601,2]
[366801650,1750462290049,-72172.07708436,0.00025601,2]
[366801651,1750462290060,-150.0,0.00025601,2]
[366801652,1750462290070,-5729.14531933,0.00025601,2]
[366801653,1750462290079,-151.0,0.00025601,7]
[366801654,1750462290091,-151.0,0.00025601,7]
[366801655,1750462290102,-151.0,0.00025601,7]
[366801656,1750462290114,-213.406953,0.00025601,7]
[366801657,1750462290123,-676.487734,0.00025601,7]
[366801658,1750462290133,-676.487734,0.00025601,7]
[366801659,1750462290143,-5877.70597935,0.00025639,2]
[366801660,1750462290154,-229.806126,0.00025644,7]
[366801661,1750462290164,-151.0,0.00025644,7]
[366801662,1750462290174,-182.592374,0.00025644,7]
[366801663,1750462290183,-309.715955,0.00025644,7]
[366801664,1750462290193,-309.715955,0.00025644,7]
[366801665,1750462290203,-300.0,0.00025675,2]
[366801666,1750462290213,-250.0,0.00025675,2]
[366801667,1750462290223,-200.0,0.00025686,2]
[366801668,1750462290233,-200.0,0.00025686,2]
[366801669,1750462290242,-151.0,0.000257,7]
[366801670,1750462290253,-151.0,0.000257,7]
[366801671,1750462290262,-151.0,0.000257,7]
[366801672,1750462290272,-153.422241,0.000257,7]
[366801673,1750462290282,-5247.48,0.000257,2]
[366801674,1750462290293,-2339.230865,0.000257,7]
[366801675,1750462290303,-151.0,0.000257,7]
[366801676,1750462290313,-151.0,0.000257,7]
[366801677,1750462290323,-304.476303,0.000257,7]
[366801678,1750462290333,-304.476303,0.000257,7]
[366801679,1750462290343,-151.0,0.000257,7]
[366801680,1750462290353,-151.0,0.000257,7]
[366801681,1750462290364,-151.0,0.000257,7]
[366801682,1750462290374,-200.91872162,0.00025732,2]
[366801683,1750462290384,-151.0,0.00025735,7]
[366801684,1750462290394,-228.072477,0.00025735,7]
[366801685,1750462290404,-228.072477,0.00025735,7]
[366801686,1750462290414,-151.0,0.00025735,7]
[366801687,1750462290424,-151.0,0.00025735,7]
[366801688,1750462290434,-151.0,0.00025735,7]
[366801689,1750462290444,-302.35099,0.00025735,7]
[366801690,1750462290454,-302.35099,0.00025735,7]
[366801691,1750462290464,-300.0,0.00025739,2]
[366801692,1750462290474,-151.0,0.00025747,7]
[366801693,1750462290484,-240.77228,0.0002575,2]
[366801694,1750462290495,-500.0,0.00025751,2]
[366801695,1750462290506,-510.65,0.00025751,4]
[366801696,1750462290517,-666.0,0.00025752,2]
[366801697,1750462290527,-213.348491,0.00025752,7]
[366801698,1750462290537,-213.348491,0.00025752,7]
[366801699,1750462290546,-151.0,0.00025752,7]
[366801700,1750462290556,-490.0,0.00025752,4]
[366801701,1750462290567,-490.0,0.00025752,4]
[366801702,1750462290577,-490.0,0.00025752,4]
[366801703,1750462290587,-615.39,0.00025752,4]
[366801704,1750462290674,-615.39,0.00025752,4]
[366801705,1750462290685,-615.39,0.00025752,4]
[366801706,1750462290695,-615.39,0.00025752,4]
[366801707,1750462290706,-615.4993522,0.00025752,4]
[366801708,1750462290715,-500.0,0.00025752,4]
[366801709,1750462290725,-500.0,0.00025752,4]
[366801710,1750462290735,-500.0,0.00025752,4]
[366801711,1750462290745,-301.27874007,0.00025752,4]
[366801712,1750462290758,-500.0,0.00025752,2]
[366801713,1750462290768,-812.17,0.00025752,4]
[366801714,1750462290777,-812.17,0.00025752,4]
[366801715,1750462290787,-812.17,0.00025752,4]
[366801716,1750462290798,-812.17,0.00025752,4]
[366801717,1750462290808,-812.19312573,0.00025752,4]
[366801718,1750462290818,-510.65,0.00025752,4]
[366801719,1750462290828,-517.98,0.00025752,4]
[366801720,1750462290837,-517.98,0.00025752,4]
[366801721,1750462290847,-517.98,0.00025752,4]
[366801722,1750462290856,-517.98,0.00025752,4]
[366801723,1750462290866,-517.99485445,0.00025752,4]
[366801724,1750462290876,-500.0,0.00025752,4]
[366801725,1750462290886,-500.0,0.00025752,4]
[366801726,1750462290896,-625.73,0.00025752,4]
[366801727,1750462290906,-625.73,0.00025752,4]
[366801728,1750462290916,-151.0,0.00025753,7]
[366801729,1750462290926,-228.072477,0.00025753,7]
[366801730,1750462290936,-228.072477,0.00025753,7]
[366801731,1750462290945,-151.0,0.00025753,7]
[366801732,1750462290955,-151.0,0.00025753,7]
[366801733,1750462290965,-190.803172,0.00025753,7]